Cogmind - Beta 14 @@@ ROGUE MODE // 2025.03.20 @ 16:43:03 Player: Zoe Result: Destroyed by S-27 Virus with Autogun Performance ------------- Evolutions (3) 1500 Regions Visited (4) 800 Robots Destroyed (37) 185 Value Destroyed (937) 937 Prototype IDs (2) 40 Alien Tech Used (0) 0 Bonus (70) 70 TOTAL SCORE: 3532 Bonus ------- High Alert Combat Kills 70 Cogmind --------- Core Integrity 0/700 Matter 290/300 Energy 100/100 System Corruption 0% Temperature Cool (0) Movement Flying (40) Location -7/Factory Parts ------- > --- POWER (1) -------- (None) > --- PROPULSION (4) --- Xenon Bombardment Thruster > --- UTILITY (6) ------ Melee Analysis Suite > --- WEAPON (2) ------- (None) > --- INVENTORY (5) ---- Improved Power Shielding Small Laser Heavy Particle Cannon Peak State ------------ > --- POWER ------------ Light Ion Engine > --- PROPULSION ------- Cesium-ion Thruster Cesium-ion Thruster Improved VTOL Module Improved VTOL Module > --- UTILITY ---------- Small Storage Unit Melee Analysis Suite Light Armor Plating > --- WEAPON ----------- Katana > --- INVENTORY -------- Small Laser Heavy Particle Cannon [Rating: 23] Favorites ----------- Power Light Ion Engine Engine Light Ion Engine Propulsion Aluminum Leg Leg Aluminum Leg Hover Unit Improved Airjet Flight Unit Cesium-ion Thruster Utility Small Storage Unit Device Seismic Detector Storage Small Storage Unit Processor Melee Analysis Suite Protection Light Armor Plating Weapon Light Assault Rifle Energy Gun Small Laser Energy Cannon Heavy Particle Cannon Ballistic Gun Light Assault Rifle Slashing Weapon Katana Build | -11 -10 -9 -8 -7 ------- Run | Yrd Mat Mat Mat Fac Slots Evolved 6 | . . 2 2 2 Power . | . . . . . Propulsion 2 | . . 1 1 . Utility 4 | . . 1 1 2 Weapon . | . . . . . Parts Attached 41 | 7 9 12 9 4 Power 5 | 2 2 1 . . Engine 5 | 2 2 1 . . Core . | . . . . . Reactor . | . . . . . Propulsion 20 | 2 4 4 7 3 Treads . | . . . . . Leg 7 | 2 4 1 . . Wheel . | . . . . . Hover 1 | . . . . 1 Flight 12 | . . 3 7 2 Utility 9 | 1 1 4 2 1 Device 3 | . . 1 1 1 Storage 1 | 1 . . . . Processor 1 | . . 1 . . Hackware . | . . . . . Protection 4 | . 1 2 1 . Artifact . | . . . . . Weapon 7 | 2 2 3 . . Energy Gun 2 | 1 1 . . . Energy Cannon 1 | . . 1 . . Ballistic Gun 3 | 1 1 1 . . Ballistic Cannon . | . . . . . Launcher . | . . . . . Special Weapon . | . . . . . Impact Weapon . | . . . . . Slashing Weapon 1 | . . 1 . . Piercing Weapon . | . . . . . Special Melee Weapon . | . . . . . Unidentified Prototypes 2 | . . . 1 1 Parts Lost 22 | . 4 2 8 8 Power 3 | . 1 1 1 . Propulsion 11 | . 2 . 5 4 Utility 5 | . . . 2 3 Weapon 3 | . 1 1 . 1 Highest Loss Streak 6 | . 2 1 4 6 To Critical Strikes . | . . . . . Average Slot Usage (%) 79 | . 87 88 76 23 Engine 10 | . 13 10 8 . Leg 15 | . 21 20 . . Flight 8 | . . 9 35 5 Storage 11 | . 14 11 9 2 Processor 3 | . . 7 9 7 Protection 7 | . 8 10 5 . Energy Gun 6 | . 10 3 . . Ballistic Gun 10 | . 16 6 . . Slashing Weapon 3 | . . 7 9 1 Peak Build Rating 23 | 6 7 21 23 17 Average Rating 10 | 4 6 12 20 9 On Entrance 9 | . 6 7 18 17 Naked Turns . | . . . . . Heaviest Build 15 | 12 15 15 13 8 Greatest Support 33 | 20 20 33 20 10 Greatest Overweight (x) 2 | . 1 2 1 1 Average Overweight (x) . | . . . . . Largest Inventory Capacity 8 | 8 8 8 8 8 Average Capacity 7 | 7 8 8 8 6 Most Carried 5 | 2 2 5 5 4 Average Carried 2 | . 1 2 3 3 Final Capacity 8 | 8 8 8 8 5 Final Carried 4 | 2 1 4 4 3 Class Distribution -------------------- 64% | Mutant 21% | Sprinter 9% | Scavenger-Mutant 5% | Scavenger-Sprinter Dominant Class ---------------- Mutant | -10/Materials Scavenger-Mutant | -9/Materials Sprinter | -8/Materials Mutant | -7/Factory Resources | -11 -10 -9 -8 -7 ----------- Run | Yrd Mat Mat Mat Fac Matter Collected 586 | 174 239 111 62 . Remotely . | . . . . . Salvage Created 1198 | . 602 268 328 . Parts 82 | . 35 21 26 . Haulers Intercepted . | . . . . . Recyclers Shooed . | . . . . . Parts Field Recycled . | . . . . . Retrieved Matter . | . . . . . Parts Self-Destructed . | . . . . . Prevented . | . . . . . Kills | -11 -10 -9 -8 -7 ------- Run | Yrd Mat Mat Mat Fac Combat Hostiles Destroyed 34 | . 19 8 7 . Melee 12 | . . 5 7 . Guns 22 | . 19 3 . . Classes Destroyed 7 | . 2 2 3 . Tunneler 2 | . . . 2 . Watcher 1 | . . . 1 . Swarmer 15 | . 8 4 3 . Grunt 12 | . 11 1 . . Duelist 1 | . . 1 . . Sentry 5 | . . 2 3 . Hunter 1 | . . . 1 . Best Kill Streak 5 | . 5 2 3 . Combat Bots Only 5 | . 5 2 3 . Max Kills in Single Turn 1 | . 1 1 1 . Gunslinging . | . . . . . Exploded . | . . . . . Melee 1 | . . 1 1 . Uniques/NPCs Destroyed . | . . . . . Combat | -11 -10 -9 -8 -7 -------- Run | Yrd Mat Mat Mat Fac Hostile Shots Fired 323 | . 103 47 78 95 Missed 108 | . 24 13 30 41 Damage Taken 2780 | . 794 356 631 999 Core 1210 | . 211 109 174 716 Absorbed by Shields 22 | . . . . 22 Regen/Repaired (Parts) 80 | . . 80 . . Core Remaining (%) 63 | 100 15 72 68 . Volleys Fired 81 | . 58 23 . . Largest 2 | . 2 1 . . Hottest 60 | . 60 40 . . Shots Fired 139 | . 116 23 . . Gun 139 | . 116 23 . . Cannon . | . . . . . Launcher . | . . . . . Special . | . . . . . Kinetic 77 | . 77 . . . Thermal 62 | . 39 23 . . Explosive . | . . . . . Electromagnetic . | . . . . . Robot Hit Streak 15 | . 14 15 . . Robot Miss Streak 5 | . 5 4 . . Penetration Max . | . . . . . Secondary Targets 1 | . 1 . . . Max Gunslinging Chain 1 | . 1 . . . Shots Hit Robots 119 | . 70 25 24 . Core Hits 52 | . 31 11 9 1 Critical Kills 1 | . 1 . . . Critical Parts Destroyed . | . . . . . Critical Strikes 3 | . 1 . 2 . Destroy 1 | . 1 . . . Sever 2 | . . . 2 . Melee Attacks 52 | . . 16 36 . Impact . | . . . . . Slashing 52 | . . 16 36 . Piercing . | . . . . . Sneak Attacks 5 | . . 1 4 . Combat Hostiles 2 | . . 1 1 . Follow-up Attacks . | . . . . . Damage Inflicted 2191 | . 686 509 991 5 Guns 868 | . 686 182 . . Cannons . | . . . . . Explosions . | . . . . . Melee 1318 | . . 327 991 . Ramming 5 | . . . . 5 Kinetic 435 | . 435 . . . Thermal 433 | . 251 182 . . Explosive . | . . . . . Electromagnetic . | . . . . . Impact . | . . . . . Slashing 1318 | . . 327 991 . Piercing . | . . . . . Highest Corruption 1 | . 1 . . . Average Corruption 1 | . 1 . . . Corruption Purged . | . . . . . Corruption Blocked . | . . . . . Effects 1 | . 1 . . . Misfires 1 | . 1 . . . Overload Shots . | . . . . . Overflow Damage 161 | . . 32 129 . Projectiles . | . . . . . Explosions . | . . . . . Melee 161 | . . 32 129 . Knockbacks . | . . . . . Impact . | . . . . . Kinetic . | . . . . . Secondary . | . . . . . Self-Inflicted Damage 1 | . . . . 1 Shots . | . . . . . Rammed 3 | . . . . 3 Targets Rammed 3 | . . . . 3 Kicked . | . . . . . Crushed . | . . . . . Highest Temperature 222 | . 222 60 24 2 Average Temperature 42 | . 48 31 10 2 Received Heat Transfer 840 | . 303 75 171 291 Siege Activations . | . . . . . Robots Corrupted . | . . . . . Combat Hostiles . | . . . . . Parts Fried . | . . . . . Impact Corruptions . | . . . . . Robots Melted . | . . . . . Combat Hostiles . | . . . . . Parts Melted 2 | . . 2 . . Heat Transferred 1000 | . 575 425 . . Parts Sabotaged . | . . . . . Parts Stolen . | . . . . . Parts Stripped . | . . . . . Power Chain Reactions . | . . . . . Alert | -11 -10 -9 -8 -7 ------- Run | Yrd Mat Mat Mat Fac Peak Influence 661 | . 524 580 661 372 Initial 287 | . . 157 166 287 Average 319 | . 297 369 412 292 Maximum Alert Level 2 | . 2 2 2 1 Low Security (%) 22 | 100 29 15 4 . Level 1 42 | . 40 31 41 100 Level 2 34 | . 29 52 53 . Level 3 . | . . . . . Level 4 . | . . . . . Level 5 . | . . . . . High Security . | . . . . . Max Security . | . . . . . Squads Dispatched 9 | . 4 . 1 4 Investigation 2 | . 1 . . 1 Extermination . | . . . . . Reinforcement 6 | . 3 . 1 2 Assault 1 | . . . . 1 Garrison . | . . . . . Intercept . | . . . . . Searches Triggered . | . . . . . Construction Impeded . | . . . . . Haulers Reinforced . | . . . . . Active Scanning Responses . | . . . . . Cargo Convoy Interrupts . | . . . . . Stealth | -11 -10 -9 -8 -7 --------- Run | Yrd Mat Mat Mat Fac Distress Signals 6 | . 2 . 2 2 Communications Jammed . | . . . . . Distress Signals . | . . . . . Times Spotted 96 | . 33 18 22 23 Peak Tracking Total 12 | . 6 6 10 12 Tactical Retreats 16 | . 4 4 4 4 Traps | -11 -10 -9 -8 -7 ------- Run | Yrd Mat Mat Mat Fac Traps Triggered 5 | . 2 . 1 2 Indirectly . | . . . . . Trap Hack Attempts . | . . . . . Triggered . | . . . . . Disarmed . | . . . . . Reprogrammed . | . . . . . Reused . | . . . . . Traps Extracted . | . . . . . Installed . | . . . . . Triggered . | . . . . . Machines | -11 -10 -9 -8 -7 ---------- Run | Yrd Mat Mat Mat Fac Machines Disabled . | . . . . . Max in Single Turn . | . . . . . Garrison Access 1 | . . . . 1 Machines Repaired . | . . . . . Machines Dismantled . | . . . . . Machines Sabotaged . | . . . . . Overloaded Fab Kills . | . . . . . Hacking | -11 -10 -9 -8 -7 --------- Run | Yrd Mat Mat Mat Fac Machines Accessed 11 | . 5 2 4 . Terminals 9 | . 5 1 3 . Fabricators . | . . . . . Repair Stations 1 | . . 1 . . Recycling Units . | . . . . . Scanalyzers . | . . . . . Garrison Access 1 | . . . 1 . Total Hacks 31 | . 17 5 9 . Successful 11 | . 7 2 2 . Failed 20 | . 10 3 7 . Catastrophic 3 | . 2 1 . . Database Lockouts . | . . . . . Manual 17 | . 15 . 2 . Terminals 24 | . 17 3 4 . Fabricators . | . . . . . Repair Stations 2 | . . 2 . . Recycling Units . | . . . . . Scanalyzers . | . . . . . Garrison Access 5 | . . . 5 . Terminal Hacks 8 | . 7 . 1 . Surveillance Status 1 | . . . 1 . Patrol Status 2 | . 2 . . . Transport Status 1 | . 1 . . . Investigation Status 1 | . 1 . . . Reinforcement Status 2 | . 2 . . . Garrison Status 1 | . 1 . . . Fabricator Hacks . | . . . . . Repair Station Hacks 2 | . . 2 . . Scan Component 1 | . . 1 . . Repair 1 | . . 1 . . Recycling Unit Hacks . | . . . . . Scanalyzer . | . . . . . Garrison Access Hacks . | . . . . . Unauthorized Hacks 1 | . . . 1 . Terminals 1 | . . . 1 . Assimilate 1 | . . . 1 . Fabricators . | . . . . . Repair Stations . | . . . . . Recycling Units . | . . . . . Scanalyzers . | . . . . . Garrison Access . | . . . . . Data Cores Recovered . | . . . . . Used . | . . . . . Hacking Detections 8 | . 4 1 3 . Full Trace Events 5 | . 4 1 . . Feedback Events 1 | . 1 . . . Corruption 1 | . 1 . . . Feedback Blocked . | . . . . . Robot Schematics Acquired . | . . . . . Robots Built . | . . . . . Authchips . | . . . . . Time . | . . . . . Total Robot Build Rating . | . . . . . Part Schematics Acquired . | . . . . . Parts Built . | . . . . . Authchips . | . . . . . Time . | . . . . . Total Part Build Rating . | . . . . . Parts Repaired 1 | . . 1 . . Time 26 | . . 26 . . Parts Recycled . | . . . . . Recycled Matter . | . . . . . Retrieved Matter . | . . . . . Retrieved Components . | . . . . . Parts Scanalyzed . | . . . . . Part Schematics Acquired . | . . . . . Parts Damaged . | . . . . . Bothacking | -11 -10 -9 -8 -7 ------------ Run | Yrd Mat Mat Mat Fac Used RIF Installer . | . . . . . Robots Hacked . | . . . . . Non-combat . | . . . . . Combat . | . . . . . Robot Hacks Applied . | . . . . . Relay Couplers Released 3 | . . . . 3 Machine Destruction 3 | . . . . 3 Fabnet Peak Effective % . | . . . . . Robots Rewired . | . . . . . Allies Hacked . | . . . . . Hacks Repelled . | . . . . . Allies | -11 -10 -9 -8 -7 -------- Run | Yrd Mat Mat Mat Fac Total Allies . | . . . . . Largest Group . | . . . . . Highest-Rated Group . | . . . . . Highest-Rated Ally . | . . . . . Total Orders . | . . . . . Ally Attacks . | . . . . . Total Damage . | . . . . . Kills . | . . . . . Allies Corrupted . | . . . . . Allies Melted . | . . . . . Intel | -11 -10 -9 -8 -7 ------- Run | Yrd Mat Mat Mat Fac Robot Analysis Total . | . . . . . Derelict Logs Recovered . | . . . . . Drone Launches . | . . . . . Drone Recoveries . | . . . . . Exploration | -11 -10 -9 -8 -7 ------------- Run | Yrd Mat Mat Mat Fac Turns Passed 2034 | 83 992 414 356 189 Spaces Moved 2070 | 62 424 377 878 329 Core 95 | 3 . . . 92 Treads . | . . . . . Legs 624 | 59 424 141 . . Wheels . | . . . . . Hover 115 | . . . . 115 Flight 1236 | . . 236 878 122 Fastest Speed 26 | 50 120 29 26 32 Average Speed 63 | 116 147 63 26 45 Slowest Speed 215 | 120 190 215 109 105 Overloaded Moves . | . . . . . Propulsion Burnouts . | . . . . . Robots Hopped 7 | . . 1 2 4 Cave-ins Triggered . | . . . . . Exploration Rate (%) 35 | 4 68 32 63 9 Regions Visited 4 Branch Regions . Pre-discovered Areas . | . . . . . Known Exits Taken . | . . . . . Unknown Exits Taken 4 | 1 1 1 1 . Scrap Searched . | . . . . . Spaces Dug . | . . . . . Terrain Destroyed . | . . . . . Melee . | . . . . . Projectile . | . . . . . AOE . | . . . . . Terrain Rammed . | . . . . . Walls Destroyed . | . . . . . Machines Disabled . | . . . . . Actions | -11 -10 -9 -8 -7 --------- Run | Yrd Mat Mat Mat Fac Total 2556 | 69 689 497 939 362 Wait 298 | . 199 66 14 19 Move 2053 | 61 423 374 873 322 Hop 6 | . . 1 2 3 Pick Up 8 | 1 . 2 5 . Fast Attach 23 | 6 5 5 4 3 Attach 9 | . 2 1 5 1 Detach 2 | . . 2 . . Swap 9 | 1 2 6 . . Drop 1 | . . 1 . . Fire 81 | . 58 23 . . Melee 52 | . . 16 36 . Ram 3 | . . . . 3 Kick . | . . . . . Crush . | . . . . . Escape Stasis 11 | . . . . 11 Rewire . | . . . . . Trap . | . . . . . Miscellaneous . | . . . . . Route ------- -11/Scrapyard -10/Materials (discovered 4 exits: *Mat x3 / [*Min]) -9/Materials -8/Materials (discovered 2 exits: [*Fac x2]) -7/Factory History --------- Turn | Location | Event 30 | -11/Scrapyard | Discovered new exit (range 16) 84 | -11/Scrapyard | Entered Materials 208 | -10/Materials | Discovered new exit (range 11) 307 | -10/Materials | Build established: Mutant 387 | -10/Materials | Discovered new exit (range 9) 393 | -10/Materials | Core integrity fell below 50% 659 | -10/Materials | Core integrity fell below 20% 726 | -10/Materials | Discovered new exit (range 10) 782 | -10/Materials | Discovered new exit (range 13) 1076 | -10/Materials | Entered another Materials area 1076 | -9/Materials | Evolved 2 slots: Propulsion x1, Utility x1 1318 | -9/Materials | Repaired Lgt. Armor Plating 1469 | -9/Materials | Discovered new exit (range 15) 1490 | -9/Materials | Entered another Materials area 1490 | -8/Materials | Evolved 2 slots: Propulsion x1, Utility x1 1644 | -8/Materials | Lost 4 parts (3n1u) 1734 | -8/Materials | Discovered new exit (range 10) 1814 | -8/Materials | Discovered new exit (range 10) 1846 | -8/Materials | Entered Factory 1846 | -7/Factory | Evolved 2 slots: Utility x2 1872 | -7/Factory | Build established: Sprinter 1873 | -7/Factory | Lost 3 parts (1p2n) 1940 | -7/Factory | Lost 6 parts (3n2u1w) 1992 | -7/Factory | Core integrity fell below 50% 2003 | -7/Factory | Core integrity fell below 20% 2035 | -7/Factory | Destroyed by S-27 Virus with Autogun Last Messages --------------- 02003_ Field strength at 88. 02004_ Field strength at 82. 02005_ Adv. ECM Suite destroyed. 02005_ Field strength at 71. 02006_ Field strength at 61. 02007_ Field strength at 55. 02008_ Field strength at 45. 02009_ Field strength at 39. 02010_ Field strength at 29. 02011_ Field strength at 23. 02012_ Field strength at 17. 02013_ Field strength at 11. 02014_ Stasis field depleted. 02020_ O-24 Administrator sends out distress signal. 02020_ O-24 Administrator: "IFF HANDSHAKE FAILED. SECURING TERMINAL." 02026_ ALERT: Hostiles spotted, dispatching reinforcements to Terminal F009. 02026_ Acquired Xenon Bombardment Thruster. Map ----- +----------------------------------------------------+ | ?????????????????????????????????????????????????? | | ?????????????????????????????????????????????????? | | ?????????????????????????????????????????????????? | | ?????????????????????????????????????????????????? | | ?????????????????????????????????????????????????? | | ?????????????????????????????????????????????????? | | ?????????????????????????????????????????????????? | | ?????????????????????????????????????????????????? | | ?????????????????????????????????????????????????? | | ?????????????????????????????????????????????????? | | ?????????????????????????????????????????????????? | | ?????????????????????? ??????????????????????????? | | ??????????????????#? ?????????????????????????? | | ??????????????????# ?############????????????? | | ??????????????????# ?# = #????????????? | | ??????????????????# ?# #????????????? | | ??????????????????# ?# #????????????? | | ??????????????????# ?# !! #????????????? | | ??????????????????# ?# ]! #????????????? | | ??????????????????# ## ]! #????????????? | | ?????????????????## ## #????????????? | | ????# ??????????# # #????????????? | | ????# ?????????# g # #????????????? | | ????# ????????# # """ """ #????????????? | | ????# ! ??+ # """ """ #????????????? | | ????# """""" # @ """ """ #????????????? | | ????# """""" # g# ss s #????????????? | | ????# """""" # gg# #????????????? | | ?????? """""" # # #????????????? | | ???????? # g #############???????????? | | ?????????? ??# ??????????? | | ????????#+##+#???# ??????????? | | #####???# ##### g ??????????? | | #???# Y ??????????? | | "" #???# m ??????????? | | "" ##### ???????????? | | "" + ???????????? | | ########### #####################????????????? | | "" #?????????# # #??????????????????????? | | "" #?????????# # """ #??????????????????????? | | "" #?????????# # """ ""#??????????????????????? | | #??????#### # """ ""#??????????????????????? | | ##+##??????# + G#??????????????????????? | | ?# #???????# # ""#??????????????????????? | | ## ######### # ""#??????????????????????? | | # ! #??????????????????????? | | #############????????????????????? | | # ?????????????????????? | | " """ ???????????????????????? | | # """ ???????????????????????? | +----------------------------------------------------+ Best States ------------- Heat Dissipation 38 Energy Generation 10 Energy Capacity 250 Matter Stores 300 Matter Capacity 300 Sight Range 16 Terrain Scan Density 10 Armor Coverage 150 Evasion (%) 64 Melee Accuracy 5 Item Schematics ----------------- None Robot Schematics ------------------ None Fabricated ------------ Nothing Alien Tech Used ----------------- None Achievements -------------- None Challenges ------------ None Game ------ Seed OmegaSurgeFlakker Manual? 0 Play Time 00:27:09 Cumulative 72.3 hours Start 2025.03.20 @ 14:37:28 End 2025.03.20 @ 16:43:03 Sessions 1 Manual Loads 0 Difficulty Rogue Special Mode None Game No. 49 Rogue 49 Adventurer 0 Explorer 0 Win Type - Total 0 Types 0/0/0/0/0/0/0/0/0 Lore% 28 Gallery% 51 Achievement% 47 Wizard Run 0 Options --------- Layout 1 ASCII 0 Keyboard 1 Movement Numpad Keybinds 0 Fullscreen 1 Font 24/Smallcaps Map View 50x35 Zoom Use 0% Tactical HUD 1 Map Filters NONE Filters NONE Steam 1 RUN: 4d250bc0-7921-49bc-8365-9cf154912b34